bitfinex-derivatives/quotes_BNBF0:USTF0_20230831
["timestamp","ask_amount","ask_price","bid_price","bid_amount"]
[1693502117154,0.0732311,218.06,217.71,0.19486245]
[1693502117351,0.0732311,218.06,217.7,0.19486245]
[1693502117558,0.0732311,218.07,217.71,0.19486245]
[1693502117757,0.0732311,218.07,217.7,0.19486245]
[1693502118052,0.0732311,218.07,217.71,0.19486245]
[1693502118254,0.0732311,218.07,217.72,0.19486245]
[1693502118460,0.0732311,218.07,217.7,0.19486245]
[1693502118656,0.0732311,218.07,217.71,0.19486245]
[1693502118957,0.0732311,218.07,217.72,0.19486245]
[1693502119155,0.0732311,218.07,217.7,0.19486245]
[1693502120054,0.0732311,218.07,217.71,0.19486245]
[1693502120258,0.0732311,218.07,217.68,0.19486245]
[1693502120460,0.0732311,218.07,217.69,0.19486245]
[1693502120657,0.0732311,218.07,217.68,0.19486245]
[1693502120961,0.0732311,218.07,217.69,0.19486245]
[1693502121267,0.0732311,218.07,217.7,0.19486245]
[1693502121451,0.0732311,218.07,217.67,0.07484592]
[1693502121452,0.0732311,218.07,217.68,0.19486245]
[1693502121657,0.0732311,218.07,217.69,0.19486245]
[1693502121859,0.0732311,218.07,217.67,0.19486245]
[1693502122063,0.0732311,218.07,217.68,0.19486245]
[1693502122254,0.0732311,218.07,217.67,0.19486245]
[1693502123458,0.0732311,218.08,217.67,0.19486245]
[1693502123659,0.0732311,218.08,217.66,0.19486245]
[1693502123859,0.0732311,218.08,217.67,0.19486245]
[1693502124055,0.0732311,218.08,217.66,0.19486245]
[1693502124256,0.0732311,218.08,217.67,0.19486245]
[1693502124459,0.0732311,218.08,217.68,0.19486245]
[1693502124660,0.0732311,218.08,217.69,0.19486245]
[1693502124855,0.0732311,218.08,217.66,0.19486245]
[1693502125058,0.0732311,218.08,217.67,0.19486245]
[1693502125258,0.0732311,218.08,217.66,0.19486245]
[1693502125459,0.0732311,218.08,217.66,0.26970837]
[1693502125660,0.0732311,218.08,217.67,0.19486245]
[1693502125956,0.0732311,218.08,217.68,0.19486245]
[1693502126161,0.0732311,218.08,217.66,0.19486245]
[1693502126361,0.0732311,218.08,217.67,0.19486245]
[1693502126556,0.0732311,218.08,217.68,0.19486245]
[1693502126756,0.0732311,218.08,217.65,0.07484592]
[1693502126757,0.0732311,218.08,217.69,0.19486245]
[1693502126957,0.0732311,218.08,217.64,0.07484592]
[1693502126958,0.0732311,218.08,217.65,0.19486245]
[1693502127161,0.0732311,218.08,217.66,0.19486245]
[1693502127364,0.0732311,218.08,217.65,0.19486245]
[1693502133465,0.0732311,218.08,217.65,0.26970837]
[1693502133666,0.0732311,218.08,217.66,0.19486245]
[1693502134265,0.0732311,218.08,217.66,0.26970837]
[1693502134458,0.0732311,218.09,217.67,0.19486245]
[1693502134659,0.0732311,218.08,217.67,0.26970837]
[1693502134858,0.0732311,218.08,217.68,0.19486245]
[1693502135765,0.0732311,218.07,217.68,0.19486245]
[1693502136366,0.0732311,218.07,217.67,0.26970837]
[1693502136567,0.0732311,218.07,217.68,0.19486245]
[1693502136762,0.0732311,218.07,217.67,0.19486245]
[1693502136968,0.0732311,218.07,217.68,0.19486245]
[1693502137163,0.0732311,218.07,217.67,0.26970837]
[1693502137367,0.0732311,218.07,217.68,0.19486245]
[1693502137668,0.0732311,218.08,217.68,0.19486245]
[1693502137868,0.0732311,218.07,217.68,0.19486245]
[1693502138663,0.0732311,218.06,217.68,0.19486245]
[1693502139070,0.0732311,218.05,217.68,0.19486245]
[1693502139263,0.0732311,218.05,217.67,0.19486245]
[1693502139463,0.0732311,218.05,217.68,0.19486245]
[1693502139668,0.0732311,218.05,217.66,0.19486245]
[1693502139868,0.0732311,218.04,217.67,0.19486245]
[1693502141773,0.0732311,218.03,217.67,0.26970837]
[1693502142071,0.0732311,218.03,217.68,0.19486245]
[1693502142271,0.0732311,218.02,217.68,0.19486245]
[1693502142970,0.0732311,217.97,217.62,0.07484592]
[1693502143273,0.0732311,217.97,217.63,0.19512158]
[1693502143477,0.0732311,217.96,217.62,0.19512158]
[1693502143669,0.0732311,217.96,217.64,0.19512158]
[1693502143974,0.0732311,217.96,217.63,0.19512158]
[1693502144175,0.0732311,217.96,217.64,0.19512158]
[1693502144470,0.0732311,217.92,217.59,0.07484592]
[1693502144674,0.0732311,217.92,217.6,0.19541715]
[1693502149381,0.63466958,217.97,217.6,0.19541715]
[1693502149382,0.0732311,217.97,217.6,0.19541715]
[1693502149873,0.0732311,217.97,217.54,0.19541715]
[1693502150182,0.0732311,217.98,217.54,0.27026307]
[1693502150483,0.0732311,217.98,217.55,0.19541715]
[1693502150782,0.0732311,217.99,217.55,0.19541715]
[1693502150975,0.0732311,217.99,217.54,0.19541715]
[1693502151281,0.0732311,217.99,217.55,0.19541715]
[1693502151481,0.0732311,217.99,217.53,0.07484592]
[1693502151482,0.0732311,217.99,217.54,0.19541715]
[1693502151680,0.0732311,217.99,217.55,0.19541715]
[1693502151981,0.0732311,218.0,217.54,0.19541715]
[1693502152181,0.0732311,218.0,217.56,0.19541715]
[1693502152382,0.0732311,218.01,217.57,0.19541715]
[1693502152583,0.0732311,218.01,217.55,0.19541715]
[1693502152781,0.0732311,218.0,217.55,0.19541715]
[1693502153675,0.0732311,218.0,217.56,0.19541715]
[1693502153881,0.0732311,218.0,217.54,0.19541715]
[1693502154080,0.0732311,218.0,217.55,0.19541715]
[1693502154283,0.0732311,218.0,217.54,0.19541715]
[1693502154480,0.0732311,218.0,217.55,0.19541715]
[1693502154681,0.0732311,218.0,217.54,0.19541715]
[1693502154879,0.0732311,218.0,217.56,0.19541715]
[1693502155082,0.0732311,218.01,217.57,0.19541715]
[1693502155283,0.0732311,218.01,217.54,0.27026307]
[1693502155483,0.0732311,218.01,217.55,0.19541715]
[1693502155880,0.0732311,218.02,217.55,0.27026307]
[1693502156082,0.0732311,218.02,217.56,0.19541715]
[1693502156485,0.0732311,218.02,217.57,0.19541715]
[1693502156686,0.0732311,218.02,217.56,0.19541715]
[1693502156885,0.0732311,218.02,217.57,0.19541715]
[1693502157185,0.0732311,218.02,217.58,0.19541715]
[1693502157388,0.0732311,218.02,217.59,0.19541715]
[1693502157582,0.0732311,218.05,217.58,0.07484592]
[1693502157780,0.0732311,218.07,217.6,0.07484592]
[1693502157987,0.0732311,218.07,217.61,0.27026307]
[1693502158187,0.0732311,218.08,217.62,0.19541715]
[1693502159787,0.0732311,218.07,217.62,0.19541715]
[1693502159988,0.0732311,218.07,217.61,0.27026307]
[1693502160189,0.0732311,218.07,217.62,0.19541715]
[1693502160393,0.0732311,218.06,217.62,0.19541715]
[1693502160691,0.0732311,218.06,217.63,0.19541715]
[1693502160884,0.0732311,218.06,217.64,0.19541715]
[1693502161083,0.0732311,218.06,217.65,0.19541715]
[1693502161282,0.0732311,218.06,217.61,0.19541715]
[1693502161484,0.0732311,218.06,217.62,0.19541715]
[1693502161689,0.0732311,218.06,217.6,0.19541715]
[1693502161690,0.0732311,218.01,217.6,0.19541715]
[1693502161886,0.0732311,218.01,217.61,0.19541715]
[1693502162085,0.0732311,218.01,217.55,0.19541715]
[1693502162287,0.0732311,218.01,217.56,0.19541715]
[1693502162489,0.0732311,218.0,217.57,0.19541715]
[1693502162689,0.0732311,218.0,217.54,0.19541715]
[1693502162891,0.0732311,218.0,217.55,0.19541715]
[1693502163086,0.0732311,218.0,217.54,0.19541715]
[1693502163287,0.84353373,217.99,217.54,0.19541715]
[1693502163488,0.91676483,217.99,217.54,0.19541715]
[1693502163687,0.0732311,217.99,217.53,0.19541715]
[1693502163889,0.0732311,217.99,217.54,0.19541715]
[1693502164191,0.0732311,218.0,217.55,0.19541715]
[1693502164390,0.0732311,218.0,217.53,0.19541715]
[1693502164595,0.0732311,218.0,217.54,0.19541715]
[1693502164789,0.0732311,218.0,217.55,0.19541715]
[1693502164993,0.0732311,218.0,217.53,0.19541715]
[1693502165190,0.0732311,218.0,217.54,0.19541715]
[1693502165494,0.0732311,218.0,217.55,0.19541715]
[1693502165688,0.0732311,218.0,217.53,0.19541715]
[1693502165892,0.91676805,217.99,217.54,0.19541715]
[1693502166088,0.14646221,218.02,217.46,0.14969184]
[1693502166089,0.0732311,218.0,217.55,0.19541715]
[1693502166294,0.0732311,218.0,217.56,0.19541715]
[1693502166493,0.0732311,218.0,217.54,0.19541715]
[1693502166690,0.0732311,218.0,217.55,0.19541715]
[1693502166891,0.0732311,218.0,217.53,0.07484592]
[1693502166892,0.0732311,218.0,217.54,0.19541715]
[1693502167093,0.0732311,218.0,217.55,0.19541715]
[1693502167287,0.0732311,218.0,217.54,0.19541715]
[1693502168591,0.0732311,218.01,217.54,0.27026307]
[1693502168799,0.0732311,218.02,217.55,0.19541715]
[1693502168997,0.0732311,218.01,217.55,0.19541715]
[1693502169796,0.0732311,218.01,217.55,0.27026307]
[1693502169998,0.0732311,218.01,217.56,0.19541715]
[1693502170591,0.0732311,218.0,217.56,0.19541715]
[1693502170795,0.0732311,218.01,217.56,0.19541715]
[1693502170996,0.0732311,218.0,217.56,0.19541715]
[1693502171197,0.0732311,218.01,217.56,0.27026307]
[1693502171490,0.0732311,218.02,217.57,0.27026307]
[1693502171693,0.0732311,218.02,217.58,0.19541715]
[1693502171892,0.0732311,218.01,217.58,0.19541715]
[1693502172691,0.0732311,218.01,217.57,0.27026307]
[1693502172894,0.48820737,218.05,217.58,0.19541715]
[1693502172895,0.0732311,218.0,217.58,0.19541715]
[1693502173299,0.0732311,217.99,217.58,0.19541715]
[1693502173499,0.0732311,217.98,217.57,0.19541715]
[1693502173695,0.0732311,217.98,217.58,0.19541715]
[1693502173899,0.0732311,217.98,217.48,0.14969184]
[1693502173900,0.0732311,217.98,217.59,0.19541715]
[1693502174099,0.0732311,217.99,217.57,0.19541715]
[1693502174301,0.0732311,218.0,217.58,0.19541715]
[1693502174500,0.07045977,218.0,217.58,0.19541715]
[1693502174900,0.14646221,218.07,217.63,0.07484592]
[1693502175199,0.14646221,218.08,217.64,0.19541715]
[1693502175400,0.48820737,218.11,217.64,0.19541715]
[1693502175401,0.14646221,218.07,217.64,0.19541715]
[1693502175804,0.14646221,218.07,217.63,0.19541715]
[1693502176807,0.14646221,218.07,217.63,0.27026307]
[1693502177103,0.14646221,218.07,217.64,0.19541715]
[1693502177906,0.14646221,218.06,217.63,0.19541715]
[1693502178099,0.14646221,218.06,217.64,0.19541715]
[1693502178300,0.14646221,218.06,217.65,0.19541715]
[1693502178504,0.14646221,218.06,217.63,0.19541715]
[1693502178704,0.14646221,218.06,217.64,0.19541715]
[1693502178906,0.14646221,218.06,217.63,0.27026307]
[1693502179108,0.14646221,218.06,217.64,0.19541715]
[1693502179708,0.14646221,218.05,217.64,0.27026307]
[1693502179901,0.14646221,218.05,217.65,0.19541715]
[1693502184413,0.14646221,218.0,217.65,0.19541715]
[1693502184614,0.14646221,217.99,217.6,0.19541715]
[1693502184815,0.14646221,217.99,217.61,0.19541715]
[1693502185014,0.14646221,217.99,217.6,0.19541715]
[1693502185315,0.14646221,217.99,217.61,0.19541715]
[1693502185512,0.14646221,217.99,217.59,0.07484592]
[1693502185513,0.14646221,217.99,217.62,0.19541715]
[1693502185715,0.14646221,217.99,217.6,0.19541715]
[1693502186016,0.14646221,217.99,217.61,0.19541715]
[1693502186215,0.14646221,217.99,217.6,0.19541715]
[1693502186414,0.14646221,217.99,217.61,0.19541715]
[1693502186614,0.14646221,217.99,217.62,0.19541715]
[1693502186818,0.14646221,218.0,217.6,0.27026307]
[1693502187110,0.14646221,218.0,217.61,0.19541715]
[1693502190514,0.14646221,217.99,217.61,0.19541715]
[1693502190717,0.14646221,218.0,217.61,0.19541715]
[1693502192210,0.14646221,218.0,217.61,0.27026307]
[1693502192414,0.14646221,218.0,217.62,0.19541715]
[1693502194914,0.14646221,217.99,217.62,0.27026307]
[1693502195217,0.14646221,217.99,217.63,0.19541715]
[1693502195618,0.14646221,217.99,217.62,0.19541715]
[1693502195822,0.14646221,217.99,217.63,0.19541715]
[1693502196118,0.14646221,217.99,217.64,0.19541715]
[1693502196320,0.14646221,217.98,217.62,0.19541715]
[1693502196520,0.14646221,217.97,217.65,0.19541715]
[1693502196824,0.48820737,217.95,217.55,0.07484592]
[1693502197017,0.14646221,217.91,217.56,0.19407905]
[1693502197217,0.14646221,217.91,217.54,0.26892497]
[1693502197416,0.14646221,217.91,217.55,0.19407905]
[1693502197921,0.14646221,217.91,217.53,0.07484592]
[1693502197922,0.14646221,217.92,217.56,0.19407905]
[1693502198222,0.14646221,217.92,217.52,0.19407905]
[1693502198521,0.14646221,217.92,217.53,0.19407905]
[1693502198716,0.14646221,217.92,217.54,0.19407905]
[1693502198918,0.14646221,217.92,217.55,0.19407905]
[1693502199116,0.14646221,217.92,217.52,0.19407905]
[1693502199420,0.14646221,217.93,217.53,0.19407905]
[1693502199923,0.14646221,217.94,217.53,0.19407905]
[1693502200121,0.14646221,217.94,217.51,0.07484592]
[1693502200122,0.14646221,217.94,217.52,0.19407905]
[1693502200314,0.14646221,217.94,217.53,0.19407905]
[1693502200515,0.14646221,217.94,217.54,0.19407905]
[1693502200722,0.14646221,217.94,217.55,0.19407905]
[1693502200917,0.14646221,217.94,217.56,0.19407905]
[1693502201122,0.14646221,217.94,217.44,0.14969184]
[1693502201123,0.14646221,217.94,217.51,0.26892497]
[1693502201322,0.14646221,217.94,217.52,0.19407905]
[1693502201721,0.14646221,217.94,217.51,0.26892497]
[1693502201919,0.14646221,217.95,217.53,0.19407905]
[1693502202221,0.14646221,217.95,217.54,0.19407905]
[1693502202417,0.14646221,217.95,217.51,0.19407905]
[1693502202620,0.14646221,217.95,217.52,0.19407905]
[1693502202814,0.14646221,217.95,217.53,0.19407905]
[1693502203014,0.14646221,217.95,217.54,0.19407905]
[1693502203220,0.14646221,217.95,217.55,0.19407905]
[1693502203420,0.14646221,217.95,217.5,0.07484592]
[1693502203421,0.14646221,217.95,217.56,0.19407905]
[1693502203727,0.14646221,217.95,217.57,0.19008714]
[1693502204018,0.14646221,217.96,217.58,0.19008714]
[1693502204222,0.99024104,217.95,217.59,0.19008714]
[1693502204419,0.84377883,217.94,217.6,0.19008714]
[1693502204618,0.99024104,217.94,217.47,0.07484592]
[1693502204819,0.14646221,217.95,217.48,0.19409053]
[1693502205020,0.84380147,217.94,217.48,0.19409053]
[1693502205522,0.84380147,217.94,217.48,0.26893645]
[1693502205722,0.84380147,217.94,217.49,0.19409053]
[1693502206226,0.84380147,217.94,217.5,0.19409053]
[1693502206425,0.84380147,217.95,217.48,0.19409053]
[1693502206724,0.84377521,217.94,217.49,0.19409053]
[1693502206928,0.84377521,217.95,217.48,0.19409053]
[1693502207227,0.84377373,217.94,217.49,0.19409053]
[1693502207527,0.14646221,217.96,217.5,0.19409053]
[1693502207828,0.84377221,217.95,217.51,0.19409053]
[1693502208026,0.84377221,217.96,217.47,0.19409053]
[1693502208223,0.84372849,217.95,217.48,0.19409053]
[1693502208419,0.14646221,217.98,217.48,0.19409053]
[1693502208627,0.84374579,217.97,217.48,0.19409053]
[1693502210327,0.990208,217.97,217.48,0.19409053]
[1693502210628,0.84374579,217.96,217.49,0.19409053]
[1693502210927,0.84374579,217.96,217.5,0.19409053]
[1693502211225,0.84374579,217.96,217.51,0.19409053]
[1693502211426,0.84374579,217.96,217.47,0.19409053]
[1693502213125,0.990208,217.96,217.47,0.19409053]
[1693502213324,0.990208,217.95,217.46,0.19409053]
[1693502213525,0.84374579,217.94,217.47,0.19409053]
[1693502213721,0.84374579,217.94,217.45,0.19409053]
[1693502214025,0.84374579,217.94,217.46,0.19409053]
[1693502214328,0.990208,217.94,217.47,0.19409053]
[1693502214527,0.990208,217.94,217.44,0.19409053]
[1693502214528,0.84374579,217.93,217.44,0.19409053]
[1693502214827,0.84374579,217.93,217.45,0.19409053]
[1693502216028,0.84374579,217.94,217.45,0.19409053]
[1693502216221,0.84374579,217.92,217.45,0.19409053]
[1693502216426,0.14646221,217.95,217.45,0.26893645]
[1693502216729,0.84379772,217.94,217.46,0.19409053]
[1693502216921,0.99025993,217.94,217.45,0.26893645]
[1693502217123,0.84379772,217.93,217.47,0.19409053]
[1693502217322,0.84379772,217.93,217.48,0.19409053]
[1693502217527,0.84379772,217.93,217.45,0.19409053]
[1693502217727,0.84379772,217.93,217.46,0.19409053]
[1693502217923,0.99025993,217.93,217.45,0.26893645]
[1693502218129,0.84379772,217.92,217.46,0.19409053]
[1693502219232,0.14646221,217.92,217.46,0.26893645]
[1693502219430,0.14646221,217.93,217.47,0.26893645]
[1693502219636,0.14646221,217.93,217.48,0.19409053]
[1693502220437,0.14646221,217.93,217.48,0.26893645]
[1693502220637,0.14646221,217.93,217.49,0.19409053]
[1693502221033,0.14646221,217.93,217.5,0.19409053]
[1693502221339,0.14646221,217.93,217.51,0.19409053]
[1693502221535,0.84381878,217.92,217.48,0.19409053]
[1693502221738,0.84381878,217.92,217.52,0.19409053]
[1693502221940,0.99028099,217.92,217.49,0.19409053]
[1693502222138,0.14646221,217.92,217.5,0.19409053]
[1693502222339,0.14646221,217.92,217.48,0.19409053]
[1693502224841,0.14646221,217.91,217.48,0.19409053]
[1693502225244,0.14646221,217.91,217.48,0.26893645]
[1693502225536,0.14646221,217.92,217.49,0.26893645]
[1693502225737,0.14646221,217.92,217.5,0.19409053]
[1693502226744,0.14646221,217.92,217.5,0.26893645]
[1693502226943,0.14646221,217.92,217.51,0.26893645]
[1693502227238,0.14646221,217.92,217.52,0.19409053]
[1693502227941,0.14646221,217.9,217.51,0.26893645]
[1693502228243,0.14646221,217.89,217.52,0.19409053]
[1693502228547,0.14646221,217.89,217.53,0.19409053]
[1693502228737,0.14646221,217.89,217.51,0.19409053]
[1693502229836,0.14646221,217.87,217.51,0.19409053]
[1693502230040,0.14646221,217.87,217.52,0.07484592]
[1693502230237,0.14646221,217.87,217.53,0.19409053]
[1693502230644,0.14646221,217.86,217.53,0.19409053]
[1693502230845,0.14646221,217.86,217.52,0.19409053]
[1693502231042,0.14646221,217.83,217.55,0.07484592]
[1693502231243,0.14646221,217.83,217.56,0.19409053]
[1693502232345,0.14646221,217.83,217.55,0.19409053]
[1693502232544,0.14646221,217.83,217.56,0.19409053]
[1693502233146,0.14646221,217.83,217.55,0.19409053]
[1693502233447,0.14646221,217.83,217.56,0.19409053]
[1693502233645,0.14646221,217.83,217.55,0.19409053]
[1693502233847,0.14646221,217.83,217.56,0.19409053]
[1693502234046,0.14646221,217.83,217.55,0.26893645]
[1693502234243,0.14646221,217.83,217.56,0.19409053]
[1693502234445,0.14646221,217.83,217.55,0.19409053]
[1693502234648,0.14646221,217.85,217.56,0.07484592]
[1693502234847,0.14646221,217.85,217.57,0.19409053]
[1693502236947,0.14646221,217.84,217.57,0.19409053]
[1693502237143,0.14646221,217.83,217.57,0.19409053]
[1693502237347,0.14646221,217.83,217.56,0.19409053]
[1693502237646,0.14646221,217.84,217.57,0.19409053]
[1693502237845,0.14646221,217.83,217.56,0.19409053]
[1693502238149,0.14646221,217.83,217.57,0.19409053]
[1693502238348,0.14646221,217.83,217.56,0.19409053]
[1693502238642,0.14646221,217.83,217.57,0.19409053]
[1693502238847,0.14646221,217.83,217.56,0.19409053]
[1693502239048,0.14646221,217.83,217.57,0.19409053]
[1693502239242,0.14646221,217.83,217.56,0.19409053]
[1693502240345,0.14646221,217.84,217.56,0.19409053]
[1693502240546,0.14646221,217.84,217.56,0.26893645]
[1693502240747,0.14646221,217.84,217.57,0.19409053]
[1693502244050,0.14646221,217.83,217.57,0.19409053]
[1693502244556,0.14646221,217.82,217.57,0.19409053]
[1693502244849,0.14646221,217.82,217.31,0.99794564]
[1693502244850,0.14646221,217.77,217.5,0.07484592]
[1693502245049,0.97641475,217.82,217.43,0.14969184]
[1693502245050,0.14646221,217.76,217.51,0.19439005]
[1693502245251,0.14646221,217.76,217.5,0.19439005]
[1693502245449,0.14646221,217.79,217.51,0.19439005]
[1693502245652,0.14646221,217.79,217.47,0.19439005]
[1693502247044,0.14646221,217.81,217.47,0.19439005]
[1693502247349,0.14646221,217.81,217.48,0.19439005]
[1693502247549,0.14646221,217.81,217.46,0.19439005]
[1693502247751,0.14646221,217.81,217.47,0.19439005]
[1693502247949,0.14646221,217.81,217.45,0.19439005]
[1693502248350,0.14646221,217.82,217.44,0.19439005]
[1693502248750,0.14646221,217.81,217.44,0.19439005]
[1693502248944,0.14646221,217.82,217.44,0.19439005]
[1693502249352,0.14646221,217.82,217.43,0.19439005]
[1693502249650,0.14646221,217.82,217.44,0.19439005]
[1693502249851,0.14646221,217.82,217.43,0.19439005]
[1693502250152,0.14646221,217.83,217.44,0.19439005]
[1693502250352,0.14646221,217.82,217.43,0.19439005]
[1693502250551,0.14646221,217.82,217.44,0.19439005]
[1693502250754,0.14646221,217.82,217.43,0.19439005]
[1693502251050,0.14646221,217.82,217.44,0.19439005]
[1693502251249,0.14646221,217.82,217.42,0.19439005]
[1693502251547,0.14646221,217.82,217.43,0.19439005]
[1693502251751,0.14646221,217.82,217.41,0.19439005]
[1693502251951,0.14646221,217.83,217.42,0.19439005]
[1693502252251,0.14646221,217.82,217.43,0.19439005]
[1693502252452,0.14646221,217.76,217.41,0.19439005]
[1693502252646,0.14646221,217.73,217.31,0.07484592]
[1693502252852,0.14646221,217.73,217.32,0.19475689]
[1693502253052,0.14646221,217.77,217.32,0.19475689]
[1693502253247,0.84455988,217.76,217.28,0.19475689]
[1693502253451,0.84455988,217.76,217.29,0.19475689]
[1693502253750,0.84455988,217.76,217.3,0.19475689]
[1693502253951,0.84455988,217.76,217.27,0.19475689]
[1693502254151,0.84455988,217.76,217.12,0.49897282]
[1693502254152,0.84455988,217.76,217.28,0.19475689]
[1693502254350,0.84455988,217.78,217.25,0.19475689]
[1693502255049,0.84455988,217.79,217.25,0.19475689]
[1693502255248,0.14646221,217.8,217.25,0.26960281]
[1693502255249,0.84455988,217.78,217.25,0.26960281]
[1693502255449,0.84455988,217.79,217.26,0.19475689]
[1693502255644,0.84455988,217.78,217.26,0.19475689]
[1693502255848,0.84455988,217.8,217.26,0.19475689]
[1693502256052,0.84455988,217.79,217.26,0.19475689]
[1693502256251,0.84455988,217.81,217.24,0.19475689]
[1693502256647,0.99102209,217.81,217.24,0.19475689]
[1693502256848,0.84455988,217.8,217.24,0.19475689]
[1693502257052,0.84455988,217.8,217.25,0.19475689]
[1693502257253,0.84455988,217.8,217.23,0.19475689]
[1693502257448,0.84455988,217.8,217.24,0.19475689]
[1693502257654,0.84455988,217.8,217.22,0.19475689]
[1693502257953,0.84455988,217.8,217.23,0.19475689]
[1693502258149,0.84455988,217.8,217.21,0.19475689]
[1693502259173,0.84455988,217.81,217.21,0.19475689]
[1693502259359,0.84455988,217.8,217.21,0.19475689]
[1693502259560,0.99102209,217.82,217.21,0.19475689]
[1693502259759,0.84455988,217.81,217.2,0.19475689]
[1693502260060,0.84455988,217.81,217.21,0.19475689]
[1693502260260,0.84455988,217.8,217.22,0.19475689]
[1693502260463,0.84455988,217.82,217.23,0.19475689]
[1693502260660,0.84455988,217.81,217.24,0.19475689]
[1693502260859,0.84455988,217.82,217.2,0.19475689]
[1693502261163,0.84455988,217.81,217.21,0.19475689]
[1693502261361,0.84455988,217.82,217.2,0.19475689]
[1693502261563,0.84455988,217.81,217.21,0.19475689]
[1693502261760,0.84455988,217.81,217.19,0.19475689]
[1693502261962,0.84455988,217.8,217.19,0.19475689]
[1693502262162,0.99102209,217.8,217.18,0.19475689]
[1693502262359,0.14646221,217.76,217.19,0.19475689]
[1693502262555,0.84455988,217.75,217.12,0.19475689]
[1693502262861,0.99102209,217.75,217.13,0.19475689]
[1693502263062,0.84455988,217.74,217.11,0.26960281]
[1693502263257,0.84455988,217.73,217.12,0.19475689]
[1693502263455,0.84455988,217.77,217.1,0.19475689]
[1693502263659,0.84455988,217.77,217.09,0.07484592]
[1693502263660,0.84455988,217.76,217.11,0.19475689]
[1693502263861,0.99102209,217.77,217.1,0.19475689]
[1693502264061,0.84455988,217.75,217.11,0.19475689]
[1693502264360,0.84455988,217.74,217.12,0.19475689]
[1693502264561,0.84455988,217.76,217.1,0.19475689]
[1693502264762,0.84455988,217.75,217.11,0.19475689]
[1693502264964,0.84455988,217.76,217.09,0.19475689]
[1693502265461,0.84455988,217.78,217.08,0.19475689]
[1693502265661,0.84455988,217.78,217.07,0.07484592]
[1693502265662,0.84455988,217.77,217.09,0.19475689]
[1693502265860,0.84455988,217.78,217.08,0.19475689]
[1693502266061,0.84455988,217.77,217.09,0.19475689]
[1693502266363,0.84455988,217.76,217.1,0.19475689]
[1693502266563,0.84455988,217.78,217.08,0.26960281]
[1693502266762,0.84455988,217.77,217.09,0.19475689]
[1693502266965,0.84455988,217.79,217.09,0.19475689]
[1693502267165,0.84455988,217.78,217.09,0.19475689]
[1693502267464,0.84455988,217.78,217.1,0.19475689]
[1693502267662,0.99102209,217.8,217.08,0.19475689]
[1693502267865,0.84455988,217.79,217.11,0.07484592]
[1693502268059,0.84455988,217.79,217.12,0.19475689]
[1693502268265,0.84455988,217.78,217.12,0.26960281]
[1693502268465,0.84455988,217.77,217.13,0.19475689]
[1693502268667,0.84455988,217.84,217.13,0.19475689]
[1693502268862,0.84455988,217.83,217.13,0.19475689]
[1693502269065,0.84455988,217.84,217.13,0.19475689]
[1693502269365,0.84455988,217.83,217.13,0.19475689]
[1693502269665,0.84455988,217.82,217.13,0.26960281]
[1693502269864,0.84455988,217.85,217.14,0.19475689]
[1693502270065,0.84455988,217.84,217.14,0.19475689]
[1693502270766,0.99102209,217.84,217.14,0.19475689]
[1693502270965,0.84455988,217.83,217.14,0.19475689]
[1693502271668,0.84455988,217.83,217.13,0.19475689]
[1693502271867,0.84455988,217.83,217.14,0.19475689]
[1693502272068,0.99102209,217.83,217.13,0.26960281]
[1693502272270,0.84455988,217.82,217.14,0.19475689]
[1693502272468,0.84455988,217.82,217.14,0.26960281]
[1693502272668,0.84455988,217.82,217.15,0.19475689]
[1693502272869,0.84455988,217.82,217.14,0.26960281]
[1693502273065,0.84455988,217.82,217.15,0.19475689]
[1693502273273,0.84455988,217.83,217.15,0.26960281]
[1693502273571,0.84455988,217.82,217.16,0.19475689]
[1693502273767,0.84455988,217.83,217.16,0.19475689]
[1693502274270,0.99102209,217.83,217.16,0.26960281]
[1693502274472,0.84455988,217.82,217.17,0.19475689]
[1693502274669,0.84455988,217.82,217.17,0.26960281]
[1693502274866,0.84455988,217.82,217.18,0.19475689]
[1693502275069,0.99102209,217.83,217.18,0.19475689]
[1693502275272,0.84455988,217.82,217.18,0.26960281]
[1693502275468,0.84455988,217.83,217.19,0.19475689]
[1693502275672,0.84455988,217.83,217.19,0.26960281]
[1693502275872,0.99102209,217.84,217.2,0.19475689]
[1693502276074,0.84455988,217.83,217.19,0.19475689]
[1693502276276,0.14646221,217.82,217.2,0.26960281]
[1693502276470,0.84455988,217.81,217.21,0.19475689]
[1693502276870,0.84455988,217.81,217.2,0.26960281]
[1693502277074,0.84455988,217.81,217.21,0.19475689]
[1693502277372,0.84455988,217.81,217.22,0.19475689]
[1693502277567,0.84455988,217.81,217.21,0.19475689]
[1693502277872,0.84455988,217.81,217.22,0.19475689]
[1693502278074,0.84455988,217.81,217.21,0.19475689]
[1693502278277,0.14646221,217.79,217.22,0.07484592]
[1693502278573,0.84455988,217.78,217.23,0.26960281]
[1693502278768,0.84455988,217.78,217.24,0.19475689]
[1693502279274,0.84455988,217.78,217.25,0.19475689]
[1693502279474,0.84455988,217.78,217.24,0.19475689]
[1693502279677,0.84455988,217.78,217.25,0.19475689]
[1693502279976,0.84455988,217.78,217.26,0.19475689]
[1693502280174,0.99102209,217.78,217.24,0.19475689]
[1693502280369,0.99102209,217.77,217.24,0.26960281]
[1693502280573,0.84455988,217.76,217.25,0.19475689]
[1693502281175,0.99102209,217.77,217.25,0.19475689]